[Event "Szansa Chess Open 2022"]
[Site "Warsaw"]
[Date "2022.09.18"]
[Round "11.2"]
[White "Nasuta, Grzegorz"]
[Black "Lewtak, Damian"]
[Result "1/2-1/2"]
[ECO "B00"]
[WhiteElo "2531"]
[BlackElo "2386"]
[Annotator "ChessBase"]
[PlyCount "28"]
[EventDate "2022.09.17"]
[EventCountry "POL"]
[SourceTitle "playchess.com"]
[Source "ChessBase"]
[SourceQuality "1"]
[TimeControl "900+10"]

1. e4 {[%emt 0:00:01]} Nc6 {[%emt 0:00:01]} 2. d4 {[%emt 0:00:44]} d5 {[%emt 0:00:01]} 3. e5 {[%emt 0:00:01]} g6 {[%emt 0:00:06]} 4. c3 {[%emt 0:01:19]} Bg7 {[%emt 0:00:11]} 5. Bd3 {[%emt 0:00:15]} h5 {[%emt 0:00:46]} 6. Bg5 {[%emt 0:00:31]} Nh6 {[%emt 0:00:22]} 7. Ne2 {[%emt 0:00:18]} Bf5 {[%emt 0:00:40]} 8. Bxh6 {[%emt 0:04:42]} Bxh6 {[%emt 0:00:02]} 9. Bxf5 {[%emt 0:00:01]} gxf5 {[%emt 0:00:01]} 10. Ng3 {[%emt 0:00:02]} e6 {[%emt 0:00:13]} 11. Nxh5 {[%emt 0:00:05]} Qg5 {[%emt 0:00:22]} 12. g3 {[%emt 0:03:14]} Qc1 {[%emt 0:00:53]} 13. Nf6+ {[%emt 0:00:15]} Ke7 {[%emt 0:00:17]} 14. Qxc1 {[%emt 0:00:09]} Bxc1 {[%emt 0:00:02]} 1/2-1/2

[Event "Szansa Chess Open 2022"]
[Site "Warsaw"]
[Date "2022.09.18"]
[Round "11.3"]
[White "Psyk, Radoslaw"]
[Black "Jakubowski, Krzysztof"]
[Result "0-1"]
[ECO "C90"]
[WhiteElo "2404"]
[BlackElo "2466"]
[Annotator "ChessBase"]
[PlyCount "78"]
[EventDate "2022.09.17"]
[EventCountry "POL"]
[SourceTitle "playchess.com"]
[Source "ChessBase"]
[SourceQuality "1"]
[TimeControl "900+10"]

1. e4 {[%emt 0:00:02]} e5 {[%emt 0:00:02]} 2. Nf3 {[%emt 0:00:04]} Nc6 {[%emt 0:00:02]} 3. Bb5 {[%emt 0:00:02]} a6 {[%emt 0:00:10]} 4. Ba4 {[%emt 0:00:03]} Nf6 {[%emt 0:01:03]} 5. O-O {[%emt 0:00:03]} Be7 {[%emt 0:00:02]} 6. Re1 {[%emt 0:00:01]} b5 {[%emt 0:00:01]} 7. Bb3 {[%emt 0:00:01]} d6 {[%emt 0:00:02]} 8. c3 {[%emt 0:00:20]} O-O {[%emt 0:00:02]} 9. d3 {[%emt 0:00:02]} Na5 {[%emt 0:00:10]} 10. Bc2 {[%emt 0:00:01]} c5 {[%emt 0:00:01]} 11. Nbd2 {[%emt 0:00:02]} Re8 {[%emt 0:00:30]} 12. Nf1 {[%emt 0:00:02]} Bf8 {[%emt 0:00:11]} 13. Ng3 {[%emt 0:00:45]} h6 {[%emt 0:00:23]} 14. h3 {[%emt 0:00:27]} Nc6 {[%emt 0:01:15]} 15. d4 {[%emt 0:01:31]} exd4 {[%emt 0:01:21]} 16. cxd4 {[%emt 0:00:01]} cxd4 {[%emt 0:00:02]} 17. Nxd4 {[%emt 0:00:02]} Bb7 {[%emt 0:00:01]} 18. Ndf5 {[%emt 0:02:07]} d5 {[%emt 0:00:51]} 19. Bd2 {[%emt 0:05:10]} Nb4 {[%emt 0:04:12]} 20. e5 {[%emt 0:02:06]} Nxc2 {[%emt 0:00:42]} 21. Qxc2 {[%emt 0:00:02]} Ne4 {[%emt 0:00:16]} 22. Nxe4 {[%emt 0:01:41]} dxe4 {[%emt 0:00:03]} 23. Bf4 {[%emt 0:00:18]} Rc8 {[%emt 0:01:00]} 24. Qe2 {[%emt 0:00:08]} Rc6 {[%emt 0:01:02]} 25. Rad1 {[%emt 0:00:12]} Qc8 {[%emt 0:00:05]} 26. Qh5 {[%emt 0:00:58]} Rg6 {[%emt 0:00:36]} 27. Re3 {[%emt 0:01:03]} Qc2 {[%emt 0:01:26]} 28. Nd6 {[%emt 0:01:03]} Bxd6 {[%emt 0:00:44]} 29. exd6 {[%emt 0:00:02]} Rd8 {[%emt 0:00:03]} 30. d7 {[%emt 0:00:44]} Bc6 {[%emt 0:00:36]} 31. Qe5 {[%emt 0:00:39]} Qxd1+ {[%emt 0:00:08]} 32. Kh2 {[%emt 0:00:00]} Qxd7 {[%emt 0:00:05]} 33. Bg3 {[%emt 0:00:27]} Re6 {[%emt 0:00:22]} 34. Qc5 {[%emt 0:00:07]} Qe7 {[%emt 0:00:08]} 35. Qb6 {[%emt 0:00:08]} Rd3 {[%emt 0:00:05]} 36. Re1 {[%emt 0:00:12]} e3 {[%emt 0:00:07]} 37. fxe3 {[%emt 0:00:18]} Rd2 {[%emt 0:00:04]} 38. Rg1 {[%emt 0:00:02]} Bxg2 {[%emt 0:00:16]} 39. Qb8+ {[%emt 0:00:04]} Qe8 {[%emt 0:00:12]} 0-1

[Event "Szansa Chess Open 2022"]
[Site "Warsaw"]
[Date "2022.09.18"]
[Round "11.4"]
[White "Nguyen, Piotr"]
[Black "Zochowski, Kacper"]
[Result "1-0"]
[ECO "A20"]
[WhiteElo "2421"]
[BlackElo "2257"]
[Annotator "ChessBase"]
[PlyCount "91"]
[EventDate "2022.09.17"]
[EventCountry "POL"]
[SourceTitle "playchess.com"]
[Source "ChessBase"]
[SourceQuality "1"]
[TimeControl "900+10"]

1. c4 {[%emt 0:00:01]} e5 {[%emt 0:00:09]} 2. g3 {[%emt 0:00:02]} d6 {[%emt 0:00:09]} 3. Bg2 {[%emt 0:00:01]} Nf6 {[%emt 0:00:01]} 4. Nc3 {[%emt 0:00:02]} Be7 {[%emt 0:00:01]} 5. e4 {[%emt 0:00:03]} O-O {[%emt 0:00:03]} 6. Nge2 {[%emt 0:00:01]} Be6 {[%emt 0:00:39]} 7. d3 Qd7 {[%emt 0:00:06]} 8. h3 {[%emt 0:00:11]} c6 {[%emt 0:01:44]} 9. f4 {[%emt 0:00:04]} exf4 {[%emt 0:00:04]} 10. Nxf4 {[%emt 0:00:22]} c5 {[%emt 0:00:50]} 11. O-O {[%emt 0:00:09]} Nc6 {[%emt 0:00:03]} 12. Be3 {[%emt 0:00:47]} Rab8 {[%emt 0:02:04]} 13. b3 {[%emt 0:02:09]} a6 {[%emt 0:00:06]} 14. g4 {[%emt 0:00:28]} b5 {[%emt 0:00:18]} 15. Qf3 {[%emt 0:00:44]} b4 {[%emt 0:00:16]} 16. Ncd5 {[%emt 0:00:15]} Bxd5 {[%emt 0:00:16]} 17. exd5 {[%emt 0:00:04]} Ne5 {[%emt 0:00:07]} 18. Qg3 {[%emt 0:00:09]} Ng6 {[%emt 0:02:11]} 19. Ne2 {[%emt 0:00:45]} h5 {[%emt 0:03:59]} 20. g5 {[%emt 0:01:00]} h4 {[%emt 0:00:05]} 21. Qf3 {[%emt 0:00:45]} Nh7 {[%emt 0:00:01]} 22. Qh5 {[%emt 0:01:11]} Qd8 {[%emt 0:00:00]} 23. Rf5 {[%emt 0:00:38]} Ne5 {[%emt 0:00:01]} 24. Qxh4 {[%emt 0:03:12]} g6 {[%emt 0:00:01]} 25. Rff1 {[%emt 0:01:15]} Nxg5 {[%emt 0:01:00]} 26. Qg3 {[%emt 0:00:08]} Nh7 {[%emt 0:01:27]} 27. d4 {[%emt 0:00:35]} Bh4 {[%emt 0:00:25]} 28. Qh2 {[%emt 0:00:09]} cxd4 {[%emt 0:00:38]} 29. Nxd4 {[%emt 0:00:02]} Re8 {[%emt 0:00:32]} 30. Bf4 {[%emt 0:00:11]} Qb6 {[%emt 0:00:30]} 31. Rad1 {[%emt 0:00:09]} Nf6 {[%emt 0:02:18]} 32. Kh1 {[%emt 0:00:13]} Nh5 {[%emt 0:00:01]} 33. Nc6 {[%emt 0:00:46]} Rb7 {[%emt 0:00:14]} 34. Bf3 {[%emt 0:01:16]} Nxf3 {[%emt 0:00:15]} 35. Rxf3 {[%emt 0:00:02]} Rd7 {[%emt 0:00:13]} 36. Bxd6 {[%emt 0:00:17]} Qb7 {[%emt 0:00:09]} 37. Rdf1 {[%emt 0:01:03]} Qc8 {[%emt 0:00:08]} 38. Bxb4 {[%emt 0:00:22]} f5 {[%emt 0:00:07]} 39. Bc3 {[%emt 0:00:28]} f4 {[%emt 0:00:14]} 40. Qc2 {[%emt 0:00:56]} Ng3+ {[%emt 0:00:03]} 41. Rxg3 {[%emt 0:00:08]} Bxg3 {[%emt 0:00:05]} 42. Qxg6+ {[%emt 0:00:03]} Kf8 {[%emt 0:00:00]} 43. Qxg3 {[%emt 0:00:06]} Rf7 {[%emt 0:00:01]} 44. Bb4+ {[%emt 0:00:13]} Ree7 {[%emt 0:00:03]} 45. Bxe7+ {[%emt 0:00:08]} Ke8 {[%emt 0:00:05]} 46. Qg8+ 1-0

[Event "Szansa Chess Open 2022"]
[Site "Warsaw"]
[Date "2022.09.18"]
[Round "11.5"]
[White "Bartkiewicz, Pawel"]
[Black "Kozak, Antoni"]
[Result "0-1"]
[ECO "B91"]
[WhiteElo "1938"]
[BlackElo "2434"]
[Annotator "ChessBase"]
[PlyCount "96"]
[EventDate "2022.09.17"]
[EventCountry "POL"]
[SourceTitle "playchess.com"]
[Source "ChessBase"]
[SourceQuality "1"]
[TimeControl "900+10"]

1. e4 {[%emt 0:00:01]} c5 {[%emt 0:00:00]} 2. Nf3 {[%emt 0:00:02]} d6 {[%emt 0:00:01]} 3. d4 {[%emt 0:00:00]} cxd4 {[%emt 0:00:01]} 4. Nxd4 {[%emt 0:00:01]} Nf6 {[%emt 0:00:01]} 5. Nc3 {[%emt 0:00:01]} a6 {[%emt 0:00:00]} 6. g3 {[%emt 0:00:06]} g6 {[%emt 0:00:02]} 7. Bg2 {[%emt 0:00:01]} Bg7 {[%emt 0:00:01]} 8. O-O {[%emt 0:00:02]} Bg4 {[%emt 0:00:07]} 9. Qd3 {[%emt 0:00:34]} Qc8 {[%emt 0:00:12]} 10. Be3 {[%emt 0:00:38]} Nbd7 {[%emt 0:00:09]} 11. Nd5 {[%emt 0:00:45]} Ne5 {[%emt 0:01:20]} 12. Qd2 {[%emt 0:02:19]} Nc4 {[%emt 0:00:31]} 13. Qc3 {[%emt 0:00:49]} Nxd5 {[%emt 0:00:55]} 14. exd5 {[%emt 0:00:02]} Qc5 {[%emt 0:00:15]} 15. b4 {[%emt 0:01:09]} Qc8 {[%emt 0:00:26]} 16. Rfe1 {[%emt 0:02:19]} Nxe3 {[%emt 0:00:58]} 17. Qxe3 {[%emt 0:00:07]} O-O {[%emt 0:00:02]} 18. Qd3 {[%emt 0:01:48]} Bf6 {[%emt 0:00:28]} 19. c4 {[%emt 0:00:09]} a5 {[%emt 0:01:14]} 20. a3 {[%emt 0:00:22]} Qc7 {[%emt 0:00:01]} 21. Rac1 {[%emt 0:00:09]} axb4 {[%emt 0:00:07]} 22. axb4 {[%emt 0:00:01]} Qb6 {[%emt 0:00:43]} 23. Nb5 {[%emt 0:00:18]} Bd7 {[%emt 0:00:18]} 24. Nc3 {[%emt 0:00:34]} Ra3 {[%emt 0:00:19]} 25. b5 {[%emt 0:00:47]} Rc8 {[%emt 0:00:20]} 26. Bf1 {[%emt 0:00:43]} Qa5 27. Re3 {[%emt 0:00:06]} Bg5 {[%emt 0:00:26]} 28. f4 {[%emt 0:00:04]} Bf6 {[%emt 0:00:02]} 29. Qd2 {[%emt 0:01:14]} h5 {[%emt 0:01:08]} 30. Kh1 {[%emt 0:01:01]} Kg7 {[%emt 0:00:53]} 31. Qe1 {[%emt 0:00:25]} Bd4 {[%emt 0:01:55]} 32. Rxe7 {[%emt 0:02:00]} Bxc3 {[%emt 0:00:02]} 33. Rxc3 {[%emt 0:00:15]} Qxc3 {[%emt 0:00:01]} 34. Qxc3+ {[%emt 0:00:07]} Rxc3 {[%emt 0:00:01]} 35. Rxd7 {[%emt 0:00:01]} Re8 {[%emt 0:00:10]} 36. Kg1 Rc2 {[%emt 0:00:01]} 37. Rxd6 {[%emt 0:02:03]} Re1 {[%emt 0:00:02]} 38. Rd7 {[%emt 0:00:05]} Rcc1 {[%emt 0:00:03]} 39. Rxb7 {[%emt 0:00:08]} Rxf1+ {[%emt 0:00:01]} 40. Kg2 {[%emt 0:00:01]} Rfd1 {[%emt 0:00:22]} 41. Rc7 {[%emt 0:00:16]} Rxd5 {[%emt 0:00:17]} 42. b6 {[%emt 0:00:01]} Rd2+ {[%emt 0:01:06]} 43. Kf3 {[%emt 0:00:03]} Rb2 {[%emt 0:00:12]} 44. c5 {[%emt 0:00:20]} Rc4 {[%emt 0:00:58]} 45. b7 {[%emt 0:00:30]} Rb3+ {[%emt 0:00:01]} 46. Ke2 {[%emt 0:00:10]} Rc2+ {[%emt 0:00:01]} 47. Kd1 {[%emt 0:00:00]} Rxh2 {[%emt 0:00:04]} 48. Re7 {[%emt 0:00:20]} Rb1# {[%emt 0:00:38]} 0-1

[Event "Szansa Chess Open 2022"]
[Site "Warsaw"]
[Date "2022.09.18"]
[Round "11.6"]
[White "Mulawa, Cyprian"]
[Black "Kowalski, Igor"]
[Result "0-1"]
[ECO "B11"]
[WhiteElo "2149"]
[BlackElo "2344"]
[Annotator "ChessBase"]
[PlyCount "94"]
[EventDate "2022.09.17"]
[EventCountry "POL"]
[SourceTitle "playchess.com"]
[Source "ChessBase"]
[SourceQuality "1"]
[TimeControl "900+10"]

1. e4 {[%emt 0:00:02]} c6 {[%emt 0:00:01]} 2. Nc3 {[%emt 0:00:01]} d5 {[%emt 0:00:00]} 3. Nf3 {[%emt 0:00:02]} Bg4 {[%emt 0:00:02]} 4. h3 {[%emt 0:00:01]} Bxf3 {[%emt 0:00:01]} 5. Qxf3 {[%emt 0:00:01]} e6 {[%emt 0:00:01]} 6. g3 {[%emt 0:00:03]} d4 {[%emt 0:00:09]} 7. Nd1 {[%emt 0:00:31]} h5 {[%emt 0:00:05]} 8. Bg2 {[%emt 0:00:06]} h4 {[%emt 0:00:09]} 9. d3 {[%emt 0:00:13]} Nd7 {[%emt 0:00:03]} 10. O-O {[%emt 0:00:13]} Bd6 {[%emt 0:00:01]} 11. Bf4 {[%emt 0:00:09]} Qc7 {[%emt 0:00:19]} 12. c3 {[%emt 0:00:06]} Bxf4 {[%emt 0:00:04]} 13. Qxf4 {[%emt 0:00:03]} Qxf4 {[%emt 0:00:03]} 14. gxf4 {[%emt 0:00:01]} c5 {[%emt 0:00:40]} 15. b4 {[%emt 0:00:29]} dxc3 {[%emt 0:00:26]} 16. Nxc3 {[%emt 0:00:02]} cxb4 {[%emt 0:00:13]} 17. Nb5 {[%emt 0:00:02]} Ke7 {[%emt 0:00:01]} 18. e5 {[%emt 0:00:05]} Nh6 {[%emt 0:00:22]} 19. Nd6 {[%emt 0:00:30]} Nf5 {[%emt 0:01:21]} 20. Bxb7 {[%emt 0:00:40]} Rab8 {[%emt 0:00:04]} 21. Nxf5+ {[%emt 0:00:09]} exf5 {[%emt 0:00:01]} 22. Bg2 {[%emt 0:00:27]} Nc5 {[%emt 0:00:14]} 23. d4 {[%emt 0:01:42]} Nd3 {[%emt 0:00:09]} 24. d5 {[%emt 0:00:19]} Nxf4 {[%emt 0:00:03]} 25. Rad1 {[%emt 0:00:44]} Rhd8 {[%emt 0:00:16]} 26. Rfe1 {[%emt 0:00:25]} Rb5 {[%emt 0:01:58]} 27. Rd4 {[%emt 0:03:47]} Nxg2 {[%emt 0:00:37]} 28. Kxg2 {[%emt 0:00:03]} Rdxd5 {[%emt 0:00:03]} 29. Rxh4 {[%emt 0:00:02]} a5 {[%emt 0:00:02]} 30. Rh7 {[%emt 0:00:42]} Rxe5 {[%emt 0:00:08]} 31. Rxe5+ {[%emt 0:00:02]} Rxe5 {[%emt 0:00:01]} 32. Rxg7 {[%emt 0:00:01]} Re2 {[%emt 0:00:15]} 33. h4 {[%emt 0:00:04]} Rxa2 {[%emt 0:00:15]} 34. h5 {[%emt 0:00:02]} Rc2 {[%emt 0:01:44]} 35. h6 {[%emt 0:00:13]} Rc8 {[%emt 0:00:02]} 36. h7 {[%emt 0:00:23]} Rh8 {[%emt 0:00:02]} 37. Rg8 {[%emt 0:00:15]} Rxh7 {[%emt 0:00:01]} 38. Ra8 {[%emt 0:00:02]} Rh6 {[%emt 0:00:53]} 39. Ra7+ {[%emt 0:00:04]} Kd8 {[%emt 0:02:49]} 40. Rxa5 {[%emt 0:00:09]} Rb6 {[%emt 0:00:02]} 41. Rxf5 {[%emt 0:00:04]} b3 {[%emt 0:00:04]} 42. Rd5+ {[%emt 0:00:01]} Kc7 {[%emt 0:00:10]} 43. Rd1 {[%emt 0:00:02]} b2 {[%emt 0:00:01]} 44. Rb1 {[%emt 0:00:01]} Kc6 {[%emt 0:00:01]} 45. Kf3 {[%emt 0:00:01]} Kc5 {[%emt 0:00:01]} 46. Ke3 {[%emt 0:00:01]} Kc4 {[%emt 0:00:01]} 47. Kd2 {[%emt 0:00:01]} Kb3 {[%emt 0:00:03]} 0-1

[Event "Szansa Chess Open 2022"]
[Site "Warsaw"]
[Date "2022.09.18"]
[Round "11.7"]
[White "Czarnecka, Lidia"]
[Black "Lewicki, Miroslaw"]
[Result "0-1"]
[ECO "B90"]
[WhiteElo "1957"]
[BlackElo "2336"]
[Annotator "ChessBase"]
[PlyCount "133"]
[EventDate "2022.09.17"]
[EventCountry "POL"]
[SourceTitle "playchess.com"]
[Source "ChessBase"]
[SourceQuality "1"]
[TimeControl "900+10"]

1. e4 {[%emt 0:00:01]} c5 {[%emt 0:00:01]} 2. Nf3 {[%emt 0:00:01]} d6 {[%emt 0:00:01]} 3. d4 {[%emt 0:00:01]} cxd4 {[%emt 0:00:01]} 4. Nxd4 {[%emt 0:00:01]} Nf6 {[%emt 0:00:01]} 5. Nc3 {[%emt 0:00:01]} a6 {[%emt 0:00:01]} 6. Bc4 {[%emt 0:00:01]} e6 {[%emt 0:00:07]} 7. Bb3 {[%emt 0:00:06]} Qc7 {[%emt 0:00:04]} 8. O-O {[%emt 0:00:11]} b5 {[%emt 0:00:04]} 9. Re1 {[%emt 0:00:21]} Bb7 {[%emt 0:00:03]} 10. f3 {[%emt 0:00:09]} Nc6 {[%emt 0:00:16]} 11. Be3 {[%emt 0:00:04]} Be7 {[%emt 0:00:10]} 12. Qd2 {[%emt 0:00:08]} O-O 13. a3 {[%emt 0:00:03]} Ne5 {[%emt 0:00:12]} 14. Qf2 {[%emt 0:00:07]} Nc4 {[%emt 0:00:11]} 15. Bxc4 {[%emt 0:00:01]} Qxc4 {[%emt 0:00:02]} 16. Nb3 {[%emt 0:00:06]} a5 {[%emt 0:01:13]} 17. Red1 {[%emt 0:01:57]} a4 {[%emt 0:01:43]} 18. Nd2 {[%emt 0:00:11]} Qc6 {[%emt 0:00:04]} 19. Qg3 {[%emt 0:00:43]} Rfc8 {[%emt 0:00:36]} 20. f4 {[%emt 0:00:30]} e5 {[%emt 0:01:05]} 21. Qf3 {[%emt 0:02:51]} b4 {[%emt 0:00:40]} 22. axb4 {[%emt 0:00:10]} a3 {[%emt 0:00:02]} 23. b5 {[%emt 0:01:00]} Qc7 {[%emt 0:00:44]} 24. b6 {[%emt 0:01:21]} Qb8 {[%emt 0:00:51]} 25. Bf2 {[%emt 0:01:54]} axb2 {[%emt 0:00:12]} 26. Rab1 {[%emt 0:00:01]} Ra3 {[%emt 0:02:19]} 27. Nb3 {[%emt 0:00:10]} Nxe4 {[%emt 0:00:47]} 28. Nxe4 {[%emt 0:00:37]} f5 {[%emt 0:00:02]} 29. Rxb2 {[%emt 0:00:24]} Bxe4 {[%emt 0:00:02]} 30. Qe2 {[%emt 0:00:02]} Qb7 {[%emt 0:00:25]} 31. Be3 {[%emt 0:01:51]} exf4 {[%emt 0:00:03]} 32. Bxf4 {[%emt 0:00:01]} Qxb6+ {[%emt 0:00:01]} 33. Be3 Qb4 {[%emt 0:00:50]} 34. Bd4 {[%emt 0:00:27]} Qc4 {[%emt 0:00:48]} 35. Qxc4+ {[%emt 0:00:34]} Rxc4 {[%emt 0:00:03]} 36. c3 {[%emt 0:00:02]} Rca4 {[%emt 0:00:37]} 37. Nd2 {[%emt 0:00:42]} Ra1 {[%emt 0:00:09]} 38. Rxa1 {[%emt 0:00:07]} Rxa1+ {[%emt 0:00:01]} 39. Kf2 {[%emt 0:00:00]} Bd5 {[%emt 0:00:50]} 40. Nf3 {[%emt 0:00:24]} g5 {[%emt 0:00:50]} 41. Ne1 {[%emt 0:00:35]} Kf7 {[%emt 0:00:18]} 42. Nd3 {[%emt 0:00:39]} Be4 {[%emt 0:00:43]} 43. Rd2 {[%emt 0:00:33]} g4 {[%emt 0:00:29]} 44. Be3 {[%emt 0:01:46]} Bh4+ {[%emt 0:00:41]} 45. g3 {[%emt 0:00:03]} Bf6 {[%emt 0:00:01]} 46. Bd4 {[%emt 0:00:04]} Rh1 {[%emt 0:01:08]} 47. Ke3 {[%emt 0:00:16]} Bg5+ {[%emt 0:00:03]} 48. Nf4 {[%emt 0:00:00]} h5 {[%emt 0:00:18]} 49. Bb6 {[%emt 0:00:18]} h4 {[%emt 0:00:39]} 50. Bc7 {[%emt 0:00:21]} d5 {[%emt 0:00:59]} 51. Rf2 {[%emt 0:00:37]} hxg3 {[%emt 0:00:11]} 52. hxg3 {[%emt 0:00:01]} Rh3 {[%emt 0:00:19]} 53. Kd4 {[%emt 0:00:15]} Rxg3 {[%emt 0:00:06]} 54. Be5 {[%emt 0:00:17]} Bxf4 {[%emt 0:00:50]} 55. Rxf4 {[%emt 0:00:03]} Rd3+ {[%emt 0:00:19]} 56. Kc5 {[%emt 0:00:01]} Ke6 {[%emt 0:00:07]} 57. Bd4 {[%emt 0:00:07]} g3 {[%emt 0:00:10]} 58. Rf1 {[%emt 0:00:10]} g2 {[%emt 0:00:04]} 59. Re1 {[%emt 0:00:05]} Rf3 {[%emt 0:00:34]} 60. Ra1 {[%emt 0:00:13]} Rf1 {[%emt 0:00:19]} 61. Ra6+ {[%emt 0:00:01]} Kf7 {[%emt 0:00:02]} 62. Ra7+ {[%emt 0:00:01]} Kg6 {[%emt 0:00:05]} 63. Rg7+ {[%emt 0:00:01]} Kh5 {[%emt 0:00:04]} 64. Kd6 {[%emt 0:00:09]} f4 {[%emt 0:00:10]} 65. Ke5 {[%emt 0:00:13]} f3 {[%emt 0:00:09]} 66. Be3 {[%emt 0:00:21]} f2 {[%emt 0:00:09]} 67. Kd4 {[%emt 0:00:25]} 0-1

[Event "Szansa Chess Open 2022"]
[Site "Warsaw"]
[Date "2022.09.18"]
[Round "11.8"]
[White "Kokoszczynski, Jan"]
[Black "Padalka, Artem"]
[Result "1-0"]
[ECO "A67"]
[WhiteElo "2313"]
[BlackElo "2184"]
[Annotator "ChessBase"]
[PlyCount "97"]
[EventDate "2022.09.17"]
[EventCountry "POL"]
[SourceTitle "playchess.com"]
[Source "ChessBase"]
[SourceQuality "1"]
[TimeControl "900+10"]

1. d4 {[%emt 0:00:01]} Nf6 {[%emt 0:00:06]} 2. c4 {[%emt 0:00:02]} c5 {[%emt 0:00:06]} 3. d5 {[%emt 0:00:07]} e6 {[%emt 0:00:07]} 4. Nc3 {[%emt 0:00:04]} exd5 {[%emt 0:00:02]} 5. cxd5 {[%emt 0:00:02]} d6 {[%emt 0:00:02]} 6. e4 {[%emt 0:00:06]} g6 {[%emt 0:00:05]} 7. f4 {[%emt 0:00:01]} Bg7 {[%emt 0:00:32]} 8. Bb5+ {[%emt 0:00:03]} Nfd7 {[%emt 0:00:02]} 9. Nf3 {[%emt 0:00:10]} a6 {[%emt 0:01:10]} 10. Bd3 {[%emt 0:00:02]} b5 {[%emt 0:00:13]} 11. O-O {[%emt 0:00:10]} O-O {[%emt 0:00:16]} 12. Kh1 {[%emt 0:00:13]} c4 {[%emt 0:05:43]} 13. Bc2 {[%emt 0:00:04]} Nc5 14. Be3 {[%emt 0:00:38]} Qc7 {[%emt 0:01:37]} 15. Bd4 {[%emt 0:00:12]} f6 {[%emt 0:00:29]} 16. a3 {[%emt 0:00:37]} Bg4 {[%emt 0:00:36]} 17. h3 {[%emt 0:00:15]} Bxf3 {[%emt 0:00:02]} 18. Qxf3 {[%emt 0:00:02]} Nbd7 {[%emt 0:00:02]} 19. Rae1 {[%emt 0:00:19]} Rab8 {[%emt 0:00:14]} 20. h4 {[%emt 0:00:33]} a5 {[%emt 0:00:15]} 21. h5 {[%emt 0:00:07]} Ne5 {[%emt 0:02:57]} 22. Qg3 {[%emt 0:01:18]} Ned3 {[%emt 0:00:03]} 23. Re3 {[%emt 0:00:34]} Qf7 {[%emt 0:00:36]} 24. Bxc5 {[%emt 0:01:58]} Nxc5 {[%emt 0:00:09]} 25. e5 {[%emt 0:00:01]} fxe5 {[%emt 0:00:17]} 26. hxg6 {[%emt 0:00:02]} Qf6 {[%emt 0:01:31]} 27. gxh7+ {[%emt 0:05:58]} Kh8 {[%emt 0:00:00]} 28. f5 {[%emt 0:00:23]} b4 {[%emt 0:00:42]} 29. axb4 {[%emt 0:00:10]} Rxb4 {[%emt 0:00:24]} 30. Ne4 {[%emt 0:00:16]} Nxe4 {[%emt 0:00:03]} 31. Rxe4 {[%emt 0:00:01]} Rc8 {[%emt 0:01:07]} 32. Rg4 {[%emt 0:00:41]} Rxb2 {[%emt 0:00:12]} 33. Rg6 {[%emt 0:00:09]} Rxc2 {[%emt 0:00:34]} 34. Rxf6 {[%emt 0:00:16]} Bxf6 {[%emt 0:00:00]} 35. Qg6 {[%emt 0:00:50]} Rf8 {[%emt 0:00:01]} 36. g4 {[%emt 0:00:00]} e4 {[%emt 0:00:18]} 37. g5 {[%emt 0:00:05]} Be5 {[%emt 0:00:01]} 38. f6 {[%emt 0:00:33]} Rh2+ {[%emt 0:00:00]} 39. Kg1 {[%emt 0:00:00]} Rxh7 {[%emt 0:00:02]} 40. Qxe4 {[%emt 0:00:03]} c3 {[%emt 0:00:24]} 41. g6 {[%emt 0:00:20]} Rg8 {[%emt 0:00:47]} 42. g7+ {[%emt 0:00:01]} Rhxg7+ {[%emt 0:00:01]} 43. fxg7+ {[%emt 0:00:02]} Rxg7+ {[%emt 0:00:01]} 44. Kf2 {[%emt 0:00:13]} a4 {[%emt 0:00:06]} 45. Qxa4 {[%emt 0:00:23]} Rh7 {[%emt 0:00:12]} 46. Qe8+ {[%emt 0:00:03]} Kg7 {[%emt 0:00:00]} 47. Rg1+ {[%emt 0:00:02]} Kf6 {[%emt 0:00:06]} 48. Qg6+ {[%emt 0:00:04]} Ke7 {[%emt 0:00:01]} 49. Qxh7+ {[%emt 0:00:01]} 1-0

[Event "Szansa Chess Open 2022"]
[Site "Warsaw"]
[Date "2022.09.18"]
[Round "11.9"]
[White "Chomczyk, Marek"]
[Black "Niezhentsev, Kyrylo"]
[Result "1-0"]
[ECO "B23"]
[WhiteElo "2327"]
[BlackElo "2009"]
[Annotator "ChessBase"]
[PlyCount "45"]
[EventDate "2022.09.17"]
[EventCountry "POL"]
[SourceTitle "playchess.com"]
[Source "ChessBase"]
[SourceQuality "1"]
[TimeControl "900+10"]

1. e4 {[%emt 0:00:01]} c5 {[%emt 0:00:01]} 2. Nc3 {[%emt 0:00:02]} e6 {[%emt 0:00:01]} 3. Nf3 {[%emt 0:00:01]} Nc6 {[%emt 0:00:04]} 4. Bb5 {[%emt 0:00:03]} a6 {[%emt 0:00:04]} 5. Bxc6 {[%emt 0:00:12]} bxc6 {[%emt 0:00:02]} 6. d4 {[%emt 0:02:31]} d5 {[%emt 0:00:25]} 7. O-O {[%emt 0:01:05]} cxd4 {[%emt 0:02:47]} 8. Nxd4 {[%emt 0:00:04]} Bb7 {[%emt 0:00:07]} 9. exd5 {[%emt 0:03:23]} cxd5 {[%emt 0:00:11]} 10. Qg4 {[%emt 0:00:51]} Nf6 {[%emt 0:00:21]} 11. Qg3 {[%emt 0:00:13]} g6 {[%emt 0:00:21]} 12. Bg5 {[%emt 0:01:45]} Bg7 {[%emt 0:00:08]} 13. Rae1 {[%emt 0:00:10]} O-O {[%emt 0:00:07]} 14. Qh4 {[%emt 0:00:10]} Rc8 {[%emt 0:00:45]} 15. Nd1 {[%emt 0:01:42]} Re8 {[%emt 0:01:19]} 16. Ne3 {[%emt 0:01:48]} h5 {[%emt 0:00:40]} 17. f4 {[%emt 0:00:30]} a5 {[%emt 0:02:08]} 18. g4 {[%emt 0:00:04]} hxg4 {[%emt 0:02:25]} 19. c3 {[%emt 0:00:01]} e5 {[%emt 0:01:09]} 20. fxe5 {[%emt 0:00:02]} Rxe5 {[%emt 0:00:03]} 21. Bxf6 {[%emt 0:00:21]} Bxf6 {[%emt 0:00:06]} 22. Qxf6 {[%emt 0:00:01]} Qe8 {[%emt 0:00:16]} 23. Nef5 {[%emt 0:00:42]} 1-0